fUSD/lending_fUSD_20260617
["ID","MTS","AMOUNT","RATE_DAILY","PERIOD"]
[425226916,1781626267000,-157.875884,0.00027397,2]
[425226917,1781626267000,-157.875884,0.00027397,2]
[425226958,1781626268000,-12500.0,0.0003,2]
[425226957,1781626268000,-10000.0,0.0003,2]
[425226959,1781626268000,-1003.27,0.0003,30]
[425226962,1781626268000,-5206.44,0.0003,2]
[425226956,1781626268000,-214.07,0.0003,2]
[425226960,1781626268000,-200.0,0.0003,2]
[425226954,1781626268000,-25000.0,0.0003,2]
[425226951,1781626268000,-698.97,0.0003,2]
[425226950,1781626268000,-2500.0,0.0003,2]
[425226952,1781626268000,-9576.34,0.0003,2]
[425226955,1781626268000,-15000.0,0.0003,2]
[425226961,1781626268000,-200.0,0.0003,2]
[425226964,1781626268000,-200.0,0.0003,2]
[425226963,1781626268000,-195.042,0.0003,22]
[425226947,1781626268000,-779.57,0.0003,2]
[425226965,1781626268000,-350.0,0.0003,30]
[425226967,1781626268000,-1548.034109,0.0003,2]
[425226966,1781626268000,-4000.0,0.0003,3]
[425226970,1781626268000,-160.0,0.0003,30]
[425226972,1781626268000,-350.0,0.00030006,15]
[425226968,1781626268000,-200.0,0.0003,2]
[425226969,1781626268000,-160.0,0.0003,30]
[425226983,1781626268000,-555.0,0.00030017,30]
[425226980,1781626268000,-457.0,0.00030017,30]
[425226982,1781626268000,-601.0,0.00030017,30]
[425226953,1781626268000,-22500.0,0.0003,2]
[425226946,1781626268000,-12500.0,0.0003,2]
[425226929,1781626268000,-22500.0,0.0003,2]
[425226942,1781626268000,-500.0,0.0003,2]
[425226921,1781626268000,-160.0,0.00028,10]
[425226920,1781626268000,-7728.0,0.000275,7]
[425226922,1781626268000,-2665.08,0.00029299,7]
[425226923,1781626268000,-2665.08,0.00029467,2]
[425226924,1781626268000,-2665.08,0.00029634,30]
[425226919,1781626268000,-157.875884,0.00027397,2]
[425226932,1781626268000,-22500.0,0.0003,2]
[425226925,1781626268000,-2665.08,0.00029802,7]
[425226926,1781626268000,-880360.46733286,0.0003,10]
[425226927,1781626268000,-2500.0,0.0003,2]
[425226984,1781626268000,-165.0,0.0003002,30]
[425226928,1781626268000,-2500.0,0.0003,2]
[425226931,1781626268000,-2500.0,0.0003,2]
[425226930,1781626268000,-25000.0,0.0003,2]
[425226935,1781626268000,-2500.0,0.0003,2]
[425226934,1781626268000,-401.19,0.0003,2]
[425226937,1781626268000,-22500.0,0.0003,2]
[425226933,1781626268000,-25000.0,0.0003,2]
[425226936,1781626268000,-22500.0,0.0003,2]
[425226938,1781626268000,-25000.0,0.0003,2]
[425226941,1781626268000,-25000.0,0.0003,2]
[425226940,1781626268000,-22500.0,0.0003,2]
[425226939,1781626268000,-12500.0,0.0003,2]
[425226949,1781626268000,-17140.89041092,0.0003,2]
[425226945,1781626268000,-22500.0,0.0003,2]
[425226943,1781626268000,-9999.96,0.0003,2]
[425226944,1781626268000,-24999.97,0.0003,2]
[425226948,1781626268000,-650.0,0.0003,2]
[425226981,1781626268000,-1110.0,0.00030017,30]
[425226971,1781626268000,-2000.0,0.0003,7]
[425226974,1781626268000,-2062.76,0.00030012,30]
[425227012,1781626268000,-500.0,0.00030082,14]
[425227011,1781626268000,-500.0,0.00030082,14]
[425227017,1781626268000,-500.0,0.00030082,14]
[425227016,1781626268000,-500.0,0.00030082,14]
[425227021,1781626268000,-500.0,0.00030082,14]
[425227018,1781626268000,-500.0,0.00030082,14]
[425227015,1781626268000,-500.0,0.00030082,14]
[425227013,1781626268000,-500.0,0.00030082,14]
[425227014,1781626268000,-500.0,0.00030082,14]
[425227022,1781626268000,-500.0,0.00030082,14]
[425227020,1781626268000,-500.0,0.00030082,14]
[425227019,1781626268000,-500.0,0.00030082,14]
[425227026,1781626268000,-2876.68241866,0.000301,2]
[425227032,1781626268000,-1246.2,0.000301,7]
[425227023,1781626268000,-455.12837187,0.00030082,14]
[425227024,1781626268000,-1003.27,0.00030082,30]
[425227025,1781626268000,-1003.27,0.00030094,30]
[425227027,1781626268000,-419.971319,0.000301,7]
[425227031,1781626268000,-709.61,0.000301,7]
[425227030,1781626268000,-416.971319,0.000301,14]
[425227029,1781626268000,-419.971319,0.000301,14]
[425227028,1781626268000,-416.971319,0.000301,7]
[425227034,1781626268000,-4246.49,0.000301,2]
[425227033,1781626268000,-251.24,0.000301,20]
[425226973,1781626268000,-1003.27,0.00030012,30]
[425227036,1781626268000,-1003.27,0.00030106,30]
[425227035,1781626268000,-250.0,0.00030105,15]
[425227010,1781626268000,-500.0,0.00030082,14]
[425227007,1781626268000,-500.0,0.00030082,14]
[425227037,1781626268000,-3933.49505741,0.0003011,14]
[425227004,1781626268000,-500.0,0.00030082,14]
[425227005,1781626268000,-500.0,0.00030082,14]
[425226976,1781626268000,-387.0,0.00030017,30]
[425226977,1781626268000,-973.0,0.00030017,30]
[425226978,1781626268000,-200.0,0.00030017,30]
[425226979,1781626268000,-391.0,0.00030017,30]
[425226985,1781626268000,-163.0,0.0003002,30]
[425226986,1781626268000,-163.0,0.0003002,30]
[425226987,1781626268000,-1003.27,0.00030024,30]
[425226988,1781626268000,-1003.27,0.00030035,30]
[425226989,1781626268000,-500.0,0.00030037,14]
[425226993,1781626268000,-500.0,0.00030037,14]
[425226990,1781626268000,-500.0,0.00030037,14]
[425226992,1781626268000,-500.0,0.00030037,14]
[425226975,1781626268000,-1773.0,0.00030017,30]
[425226994,1781626268000,-1038.0,0.00030037,2]
[425226991,1781626268000,-500.0,0.00030037,14]
[425227006,1781626268000,-500.0,0.00030082,14]
[425227001,1781626268000,-400.0,0.0003007,2]
[425227002,1781626268000,-400.0,0.0003007,2]
[425226997,1781626268000,-636.0,0.00030061,30]
[425226999,1781626268000,-462.0,0.00030061,30]
[425227003,1781626268000,-1003.27,0.00030071,30]
[425227008,1781626268000,-500.0,0.00030082,14]
[425226998,1781626268000,-637.0,0.00030061,30]
[425227009,1781626268000,-500.0,0.00030082,14]
[425226996,1781626268000,-1003.27,0.00030059,30]
[425226995,1781626268000,-1003.27,0.00030047,30]
[425227000,1781626268000,-2819.0,0.00030061,30]
[425227073,1781626269000,-500.0,0.00030136,7]
[425227071,1781626269000,-500.0,0.00030136,7]
[425227076,1781626269000,-500.0,0.00030136,7]
[425227068,1781626269000,-500.0,0.00030136,7]
[425227067,1781626269000,-500.0,0.00030136,7]
[425227070,1781626269000,-500.0,0.00030136,7]
[425227077,1781626269000,-500.0,0.00030136,7]
[425227072,1781626269000,-500.0,0.00030136,7]
[425227075,1781626269000,-500.0,0.00030136,7]
[425227066,1781626269000,-500.0,0.00030136,7]
[425227074,1781626269000,-500.0,0.00030136,7]
[425227097,1781626269000,-500.0,0.00030136,7]
[425227078,1781626269000,-500.0,0.00030136,7]
[425227080,1781626269000,-500.0,0.00030136,7]
[425227079,1781626269000,-500.0,0.00030136,7]
[425227085,1781626269000,-500.0,0.00030136,7]
[425227084,1781626269000,-500.0,0.00030136,7]
[425227088,1781626269000,-500.0,0.00030136,7]
[425227082,1781626269000,-500.0,0.00030136,7]
[425227086,1781626269000,-500.0,0.00030136,7]
[425227083,1781626269000,-500.0,0.00030136,7]
[425227096,1781626269000,-500.0,0.00030136,7]
[425227090,1781626269000,-500.0,0.00030136,7]
[425227069,1781626269000,-500.0,0.00030136,7]
[425227081,1781626269000,-500.0,0.00030136,7]
[425227062,1781626269000,-500.0,0.00030136,7]
[425227051,1781626269000,-1003.27,0.00030129,30]
[425227061,1781626269000,-500.0,0.00030136,7]
[425227038,1781626269000,-2334.167247,0.0003011,14]
[425227042,1781626269000,-22500.0,0.00030125,2]
[425227043,1781626269000,-22500.0,0.00030125,2]
[425227041,1781626269000,-8024.68,0.00030125,2]
[425227040,1781626269000,-1003.27,0.00030118,30]
[425227039,1781626269000,-200.0,0.0003011,2]
[425227044,1781626269000,-22500.0,0.00030125,2]
[425227045,1781626269000,-12500.0,0.00030125,2]
[425227052,1781626269000,-1574.58146506,0.0003013,2]
[425227046,1781626269000,-22500.0,0.00030125,2]
[425227050,1781626269000,-12500.0,0.00030125,2]
[425227063,1781626269000,-500.0,0.00030136,7]
[425227047,1781626269000,-12500.0,0.00030125,2]
[425227049,1781626269000,-22500.0,0.00030125,2]
[425227053,1781626269000,-2000.0,0.0003013,60]
[425227054,1781626269000,-998.9481284,0.0003013,30]
[425227065,1781626269000,-500.0,0.00030136,7]
[425227055,1781626269000,-42705.19184192,0.0003013,2]
[425227056,1781626269000,-150.0,0.0003013,30]
[425227064,1781626269000,-500.0,0.00030136,7]
[425227058,1781626269000,-150.0,0.00030136,7]
[425227059,1781626269000,-500.0,0.00030136,7]
[425227060,1781626269000,-500.0,0.00030136,7]
[425227057,1781626269000,-501.16255935,0.00030135,2]
[425227048,1781626269000,-22500.0,0.00030125,2]
[425227089,1781626269000,-500.0,0.00030136,7]
[425227087,1781626269000,-500.0,0.00030136,7]
[425227091,1781626269000,-500.0,0.00030136,7]
[425227124,1781626269000,-500.0,0.00030136,7]
[425227123,1781626269000,-500.0,0.00030136,7]
[425227132,1781626269000,-500.0,0.00030136,7]
[425227130,1781626269000,-500.0,0.00030136,7]
[425227125,1781626269000,-500.0,0.00030136,7]
[425227133,1781626269000,-500.0,0.00030136,7]
[425227126,1781626269000,-500.0,0.00030136,7]
[425227127,1781626269000,-500.0,0.00030136,7]
[425227129,1781626269000,-500.0,0.00030136,7]
[425227128,1781626269000,-500.0,0.00030136,7]
[425227145,1781626269000,-500.0,0.00030136,7]
[425227131,1781626269000,-500.0,0.00030136,7]
[425227134,1781626269000,-500.0,0.00030136,7]
[425227136,1781626269000,-500.0,0.00030136,7]
[425227135,1781626269000,-500.0,0.00030136,7]
[425227144,1781626269000,-500.0,0.00030136,7]
[425227139,1781626269000,-500.0,0.00030136,7]
[425227142,1781626269000,-500.0,0.00030136,7]
[425227138,1781626269000,-500.0,0.00030136,7]
[425227143,1781626269000,-500.0,0.00030136,7]
[425227141,1781626269000,-500.0,0.00030136,7]
[425227140,1781626269000,-500.0,0.00030136,7]
[425227146,1781626269000,-500.0,0.00030136,7]
[425227147,1781626269000,-500.0,0.00030136,7]
[425227137,1781626269000,-500.0,0.00030136,7]
[425227121,1781626269000,-500.0,0.00030136,7]
[425227098,1781626269000,-500.0,0.00030136,7]
[425227119,1781626269000,-500.0,0.00030136,7]
[425227099,1781626269000,-500.0,0.00030136,7]
[425227094,1781626269000,-500.0,0.00030136,7]
[425227093,1781626269000,-500.0,0.00030136,7]
[425227095,1781626269000,-500.0,0.00030136,7]
[425227092,1781626269000,-500.0,0.00030136,7]
[425227100,1781626269000,-500.0,0.00030136,7]
[425227108,1781626269000,-500.0,0.00030136,7]
[425227118,1781626269000,-500.0,0.00030136,7]
[425227103,1781626269000,-500.0,0.00030136,7]
[425227107,1781626269000,-500.0,0.00030136,7]
[425227101,1781626269000,-500.0,0.00030136,7]
[425227105,1781626269000,-500.0,0.00030136,7]
[425227102,1781626269000,-500.0,0.00030136,7]
[425227104,1781626269000,-500.0,0.00030136,7]
[425227110,1781626269000,-500.0,0.00030136,7]
[425227116,1781626269000,-500.0,0.00030136,7]
[425227114,1781626269000,-500.0,0.00030136,7]
[425227113,1781626269000,-500.0,0.00030136,7]
[425227117,1781626269000,-500.0,0.00030136,7]
[425227120,1781626269000,-500.0,0.00030136,7]
[425227115,1781626269000,-500.0,0.00030136,7]
[425227122,1781626269000,-500.0,0.00030136,7]
[425227112,1781626269000,-500.0,0.00030136,7]
[425227109,1781626269000,-500.0,0.00030136,7]
[425227106,1781626269000,-500.0,0.00030136,7]
[425227111,1781626269000,-500.0,0.00030136,7]
[425227183,1781626270000,-415.83675007,0.00030137,7]
[425227185,1781626270000,-500.0,0.00030137,3]
[425227180,1781626270000,-158.57,0.00030137,120]
[425227179,1781626270000,-163.97545328,0.00030137,120]
[425227184,1781626270000,-500.0,0.00030137,3]
[425227181,1781626270000,-500.0,0.00030137,3]
[425227175,1781626270000,-411.94,0.00030137,120]
[425227173,1781626270000,-797.0,0.00030137,30]
[425227178,1781626270000,-597.1841079,0.00030137,14]
[425227182,1781626270000,-207.91837504,0.00030137,7]
[425227186,1781626270000,-623.75512511,0.00030137,7]
[425227195,1781626270000,-500.0,0.00030137,3]
[425227189,1781626270000,-237.36062674,0.00030137,7]
[425227187,1781626270000,-831.67350015,0.00030137,7]
[425227200,1781626270000,-1764.85674893,0.00030137,120]
[425227192,1781626270000,-500.0,0.00030137,3]
[425227193,1781626270000,-2737.0,0.00030137,120]
[425227190,1781626270000,-500.0,0.00030137,3]
[425227191,1781626270000,-1000.0,0.00030137,30]
[425227199,1781626270000,-8850.09918454,0.00030137,120]
[425227197,1781626270000,-500.0,0.00030137,3]
[425227194,1781626270000,-150.0,0.00030137,2]
[425227198,1781626270000,-19167.90610288,0.00030137,120]
[425227177,1781626270000,-1016.14,0.00030137,2]
[425227188,1781626270000,-500.0,0.00030137,3]
[425227171,1781626270000,-725.88,0.00030137,30]
[425227157,1781626270000,-500.0,0.00030136,7]
[425227172,1781626270000,-1019.6,0.00030137,30]
[425227196,1781626270000,-152.17182397,0.00030137,5]
[425227148,1781626270000,-500.0,0.00030136,7]
[425227150,1781626270000,-500.0,0.00030136,7]
[425227153,1781626270000,-500.0,0.00030136,7]
[425227155,1781626270000,-500.0,0.00030136,7]
[425227154,1781626270000,-500.0,0.00030136,7]
[425227152,1781626270000,-500.0,0.00030136,7]
[425227151,1781626270000,-500.0,0.00030136,7]
[425227149,1781626270000,-500.0,0.00030136,7]
[425227156,1781626270000,-500.0,0.00030136,7]
[425227158,1781626270000,-500.0,0.00030136,7]
[425227170,1781626270000,-1000.0,0.00030137,30]
[425227167,1781626270000,-1000.0,0.00030137,2]
[425227161,1781626270000,-2124.89,0.00030136,30]
[425227159,1781626270000,-995.5,0.00030136,30]
[425227168,1781626270000,-1000.0,0.00030137,2]
[425227160,1781626270000,-3020.02,0.00030136,30]
[425227162,1781626270000,-150.0,0.00030136,2]
[425227164,1781626270000,-878.87,0.00030137,2]
[425227163,1781626270000,-5000.0,0.00030137,7]
[425227165,1781626270000,-711.79022855,0.00030137,2]
[425227169,1781626270000,-319.388797,0.00030137,2]
[425227174,1781626270000,-797.88076353,0.00030137,30]
[425227176,1781626270000,-250.0,0.00030137,120]
[425227166,1781626270000,-1000.0,0.00030137,2]
[425227201,1781626270000,-178.3012988,0.00030137,30]
[425227202,1781626270000,-500.0,0.00030137,3]
[425227205,1781626270000,-244.48574937,0.00030137,7]
[425227230,1781626270000,-1018.31660106,0.0003014,4]
[425227233,1781626270000,-1018.31,0.0003014,4]
[425227235,1781626270000,-2376.07206913,0.0003014,4]
[425227234,1781626270000,-2376.07206913,0.0003014,4]
[425227238,1781626270000,-2376.07206913,0.0003014,4]
[425227240,1781626270000,-2376.07206913,0.0003014,4]
[425227241,1781626270000,-2376.07206913,0.0003014,4]
[425227237,1781626270000,-2376.07206913,0.0003014,4]
[425227239,1781626270000,-2376.07206913,0.0003014,4]
[425227243,1781626270000,-2376.07206913,0.0003014,4]
[425227236,1781626270000,-2376.07206913,0.0003014,4]
[425227254,1781626270000,-583.44289273,0.0003014,4]
[425227245,1781626270000,-2376.07206913,0.0003014,4]
[425227253,1781626270000,-2376.07,0.0003014,4]
[425227246,1781626270000,-2376.07206913,0.0003014,4]
[425227244,1781626270000,-2376.07206913,0.0003014,4]
[425227247,1781626270000,-2376.07206913,0.0003014,4]
[425227248,1781626270000,-2376.07206913,0.0003014,4]
[425227250,1781626270000,-2376.07206913,0.0003014,4]
[425227251,1781626270000,-2376.07206913,0.0003014,4]
[425227249,1781626270000,-2376.07206913,0.0003014,4]
[425227252,1781626270000,-2376.07206913,0.0003014,4]
[425227256,1781626270000,-583.44289273,0.0003014,4]
[425227227,1781626270000,-1018.31660106,0.0003014,4]
[425227225,1781626270000,-1018.31660106,0.0003014,4]
[425227242,1781626270000,-2376.07206913,0.0003014,4]
[425227229,1781626270000,-1018.31660106,0.0003014,4]
[425227228,1781626270000,-1018.31660106,0.0003014,4]
[425227203,1781626270000,-195.94876448,0.00030137,120]
[425227206,1781626270000,-2190.0,0.00030137,120]
[425227209,1781626270000,-2110.0,0.00030137,2]
[425227207,1781626270000,-152.0,0.00030137,120]
[425227211,1781626270000,-1002.56590066,0.00030137,14]
[425227210,1781626270000,-427.95,0.00030137,120]
[425227208,1781626270000,-152.0,0.00030137,120]
[425227213,1781626270000,-150.0,0.00030137,2]
[425227221,1781626270000,-1018.31660106,0.0003014,4]
[425227212,1781626270000,-3642.08,0.00030137,7]
[425227222,1781626270000,-1018.31660106,0.0003014,4]
[425227204,1781626270000,-162.97,0.00030137,7]
[425227255,1781626270000,-583.44289273,0.0003014,4]
[425227214,1781626270000,-1018.31660106,0.0003014,4]
[425227232,1781626270000,-1018.31660106,0.0003014,4]
[425227224,1781626270000,-1018.31660106,0.0003014,4]
[425227223,1781626270000,-1018.31660106,0.0003014,4]
[425227226,1781626270000,-1018.31660106,0.0003014,4]
[425227231,1781626270000,-1018.31660106,0.0003014,4]
[425227219,1781626270000,-1018.31660106,0.0003014,4]
[425227218,1781626270000,-1018.31660106,0.0003014,4]
[425227215,1781626270000,-1018.31660106,0.0003014,4]
[425227216,1781626270000,-1018.31660106,0.0003014,4]
[425227220,1781626270000,-1018.31660106,0.0003014,4]
[425227217,1781626270000,-1018.31660106,0.0003014,4]
[425227292,1781626271000,-1361.36674971,0.0003014,4]
[425227296,1781626271000,-954.29605131,0.0003014,4]
[425227298,1781626271000,-954.29605131,0.0003014,4]
[425227295,1781626271000,-954.29605131,0.0003014,4]
[425227289,1781626271000,-1361.36674971,0.0003014,4]
[425227290,1781626271000,-1361.36674971,0.0003014,4]
[425227287,1781626271000,-1361.36674971,0.0003014,4]
[425227284,1781626271000,-1361.36674971,0.0003014,4]
[425227293,1781626271000,-1361.36,0.0003014,4]
[425227288,1781626271000,-1361.36674971,0.0003014,4]
[425227291,1781626271000,-1361.36674971,0.0003014,4]
[425227282,1781626271000,-1361.36674971,0.0003014,4]
[425227297,1781626271000,-954.29605131,0.0003014,4]
[425227300,1781626271000,-954.29605131,0.0003014,4]
[425227299,1781626271000,-954.29605131,0.0003014,4]
[425227301,1781626271000,-954.29605131,0.0003014,4]
[425227309,1781626271000,-954.29605131,0.0003014,4]
[425227303,1781626271000,-954.29605131,0.0003014,4]
[425227306,1781626271000,-954.29605131,0.0003014,4]
[425227302,1781626271000,-954.29605131,0.0003014,4]
[425227304,1781626271000,-954.29605131,0.0003014,4]
[425227305,1781626271000,-954.29605131,0.0003014,4]
[425227308,1781626271000,-954.29605131,0.0003014,4]
[425227294,1781626271000,-954.29605131,0.0003014,4]
[425227307,1781626271000,-954.29605131,0.0003014,4]
[425227257,1781626271000,-583.44289273,0.0003014,4]
[425227281,1781626271000,-1361.36674971,0.0003014,4]
[425227311,1781626271000,-954.29605131,0.0003014,4]
[425227258,1781626271000,-583.44289273,0.0003014,4]
[425227259,1781626271000,-583.44289273,0.0003014,4]
[425227260,1781626271000,-583.44289273,0.0003014,4]
[425227261,1781626271000,-583.44289273,0.0003014,4]
[425227264,1781626271000,-583.44289273,0.0003014,4]
[425227263,1781626271000,-583.44289273,0.0003014,4]
[425227262,1781626271000,-583.44289273,0.0003014,4]
[425227265,1781626271000,-583.44289273,0.0003014,4]
[425227267,1781626271000,-583.44289273,0.0003014,4]
[425227273,1781626271000,-583.44,0.0003014,4]
[425227266,1781626271000,-583.44289273,0.0003014,4]
[425227275,1781626271000,-1361.36674971,0.0003014,4]
[425227276,1781626271000,-1361.36674971,0.0003014,4]
[425227274,1781626271000,-1361.36674971,0.0003014,4]
[425227268,1781626271000,-583.44289273,0.0003014,4]
[425227270,1781626271000,-583.44289273,0.0003014,4]
[425227271,1781626271000,-583.44289273,0.0003014,4]
[425227269,1781626271000,-583.44289273,0.0003014,4]
[425227272,1781626271000,-583.44289273,0.0003014,4]
[425227279,1781626271000,-1361.36674971,0.0003014,4]
[425227278,1781626271000,-1361.36674971,0.0003014,4]
[425227277,1781626271000,-1361.36674971,0.0003014,4]
[425227280,1781626271000,-1361.36674971,0.0003014,4]
[425227285,1781626271000,-1361.36674971,0.0003014,4]
[425227286,1781626271000,-1361.36674971,0.0003014,4]
[425227310,1781626271000,-954.29605131,0.0003014,4]
[425227283,1781626271000,-1361.36674971,0.0003014,4]
[425227316,1781626271000,-2226.6907864,0.0003014,4]
[425227344,1781626271000,-15840.5032197,0.000302,2]
[425227348,1781626271000,-601.46,0.000302,2]
[425227345,1781626271000,-403.98,0.000302,2]
[425227343,1781626271000,-669146.00135223,0.00030191,7]
[425227346,1781626271000,-601.59,0.000302,2]
[425227351,1781626271000,-775.4783256,0.00030217,2]
[425227350,1781626271000,-644.79446245,0.00030217,2]
[425227349,1781626271000,-151.0,0.00030217,2]
[425227347,1781626271000,-1003.27,0.000302,30]
[425227352,1781626271000,-301.14337869,0.0003022,2]
[425227353,1781626271000,-200.0,0.0003022,2]
[425227342,1781626271000,-243.88985734,0.00030191,7]
[425227354,1781626271000,-2717.0,0.00030239,2]
[425227358,1781626271000,-2500.0,0.0003025,2]
[425227360,1781626271000,-25000.0,0.0003025,2]
[425227361,1781626271000,-2500.0,0.0003025,2]
[425227362,1781626271000,-22500.0,0.0003025,2]
[425227364,1781626271000,-14922.28,0.0003025,2]
[425227359,1781626271000,-22500.0,0.0003025,2]
[425227355,1781626271000,-2500.0,0.0003025,2]
[425227363,1781626271000,-22500.0,0.0003025,2]
[425227366,1781626271000,-25000.0,0.0003025,2]
[425227365,1781626271000,-12500.0,0.0003025,2]
[425227313,1781626271000,-954.29,0.0003014,4]
[425227356,1781626271000,-2500.0,0.0003025,2]
[425227337,1781626271000,-1003.27,0.00030153,30]
[425227357,1781626271000,-25000.0,0.0003025,2]
[425227339,1781626271000,-1003.27,0.00030176,30]
[425227340,1781626271000,-932.35328738,0.00030187,2]
[425227312,1781626271000,-954.29605131,0.0003014,4]
[425227317,1781626271000,-2226.6907864,0.0003014,4]
[425227315,1781626271000,-2226.6907864,0.0003014,4]
[425227314,1781626271000,-2226.6907864,0.0003014,4]
[425227320,1781626271000,-2226.6907864,0.0003014,4]
[425227318,1781626271000,-2226.6907864,0.0003014,4]
[425227321,1781626271000,-2226.6907864,0.0003014,4]
[425227322,1781626271000,-2226.6907864,0.0003014,4]
[425227331,1781626271000,-2226.6907864,0.0003014,4]
[425227330,1781626271000,-2226.6907864,0.0003014,4]
[425227325,1781626271000,-2226.6907864,0.0003014,4]
[425227319,1781626271000,-2226.6907864,0.0003014,4]
[425227334,1781626271000,-6554.1,0.0003014,7]
[425227329,1781626271000,-2226.6907864,0.0003014,4]
[425227323,1781626271000,-2226.6907864,0.0003014,4]
[425227328,1781626271000,-2226.6907864,0.0003014,4]
[425227326,1781626271000,-2226.6907864,0.0003014,4]
[425227327,1781626271000,-2226.6907864,0.0003014,4]
[425227333,1781626271000,-2226.69,0.0003014,4]
[425227332,1781626271000,-2226.6907864,0.0003014,4]
[425227338,1781626271000,-1003.27,0.00030165,30]
[425227341,1781626271000,-1003.27,0.00030188,30]
[425227336,1781626271000,-1003.27,0.00030141,30]
[425227324,1781626271000,-2226.6907864,0.0003014,4]
[425227335,1781626271000,-152.0,0.0003014,20]
[425227386,1781626272000,-833.04955115,0.00030378,5]
[425227383,1781626272000,-1337.33567514,0.00030378,7]
[425227394,1781626272000,-422.971319,0.000304,7]
[425227384,1781626272000,-849.4282863,0.00030378,7]
[425227385,1781626272000,-845.22701024,0.00030378,2]
[425227388,1781626272000,-817.94237078,0.00030378,7]
[425227391,1781626272000,-871.28854451,0.00030378,7]
[425227390,1781626272000,-877.72791201,0.00030378,7]
[425227393,1781626272000,-1119.63,0.00030393,7]
[425227392,1781626272000,-427.95,0.00030384,120]
[425227389,1781626272000,-1182.79960587,0.00030378,7]
[425227382,1781626272000,-754.15175813,0.00030378,7]
[425227387,1781626272000,-1647.09280732,0.00030378,7]
[425227381,1781626272000,-19653.72,0.00030375,2]
[425227377,1781626272000,-22500.0,0.00030375,2]
[425227379,1781626272000,-12500.0,0.00030375,2]
[425227378,1781626272000,-22500.0,0.00030375,2]
[425227374,1781626272000,-964.64286294,0.00030373,7]
[425227373,1781626272000,-755.0,0.00030341,5]
[425227370,1781626272000,-25000.0,0.0003025,2]
[425227369,1781626272000,-22500.0,0.0003025,2]
[425227372,1781626272000,-10000.0,0.00030333,2]
[425227371,1781626272000,-645.12,0.000303,30]
[425227367,1781626272000,-22500.0,0.0003025,2]
[425227376,1781626272000,-22500.0,0.00030375,2]
[425227368,1781626272000,-2500.0,0.0003025,2]
[425227375,1781626272000,-774.31710834,0.00030373,7]
[425227395,1781626272000,-422.971319,0.000304,14]
[425227380,1781626272000,-9597.88,0.00030375,2]
[425227397,1781626272000,-262.383274,0.000304,14]
[425227407,1781626272000,-913.44522711,0.00030428,7]
[425227405,1781626272000,-250.0,0.00030421,7]
[425227427,1781626272000,-761.41197564,0.00030499,7]
[425227398,1781626272000,-411.23,0.00030411,120]
[425227426,1781626272000,-1038.88857851,0.00030499,7]
[425227422,1781626272000,-819.48133375,0.00030494,7]
[425227420,1781626272000,-999.60413774,0.00030494,7]
[425227418,1781626272000,-834.39817142,0.00030494,7]
[425227424,1781626272000,-921.30357186,0.00030494,7]
[425227425,1781626272000,-778.49714174,0.00030499,7]
[425227423,1781626272000,-834.79717642,0.00030494,7]
[425227421,1781626272000,-835.35465296,0.00030494,7]
[425227417,1781626272000,-898.72704964,0.00030474,7]
[425227414,1781626272000,-751.78204138,0.00030443,7]
[425227413,1781626272000,-159.36,0.00030441,8]
[425227415,1781626272000,-756.15624069,0.00030463,7]
[425227419,1781626272000,-784.84917865,0.00030494,7]
[425227408,1781626272000,-896.99759134,0.00030433,7]
[425227404,1781626272000,-250.0,0.00030421,7]
[425227411,1781626272000,-783.66097929,0.00030438,7]